Cogmind - Beta 14 @@@ ROGUE MODE // 2024.10.20 @ 11:32:53 Player: toydarian Result: Self-destructed Performance ------------- Evolutions (2) 1000 Regions Visited (7) 1400 Robots Destroyed (46) 230 Value Destroyed (987) 987 Prototype IDs (4) 80 Alien Tech Used (0) 0 Bonus (369) 369 TOTAL SCORE: 4066 Bonus ------- High Alert Combat Kills 49 Follower Combat Kills 93 Aligned with FarCom 300 Friendly Fire -73 Cogmind --------- Core Integrity 419/550 Matter 5/500 Energy 91/100 System Corruption 0% Temperature Cool (0) Movement Flying (37) Location -8/Materials Parts ------- > --- POWER (1) -------- (None) > --- PROPULSION (3) --- Improved Flight Unit Improved Flight Unit > --- UTILITY (5) ------ High-capacity Matter Pod > --- WEAPON (2) ------- (None) > --- INVENTORY (5) ---- Improved Ion Engine Hardened Medium Armor Plating Mini Grenade Launcher Mini Grenade Launcher Longsword +1 Peak State ------------ > --- POWER ------------ Improved Ion Engine > --- PROPULSION ------- Improved Flight Unit Improved Flight Unit Improved Flight Unit > --- UTILITY ---------- Medium Armor Plating Hacking Suite > --- WEAPON ----------- Mini Grenade Launcher Longsword +1 > --- INVENTORY -------- Improved Ion Engine Mini Grenade Launcher Mini Grenade Launcher [Rating: 26] Favorites ----------- Power Ion Engine Engine Ion Engine Propulsion Improved Flight Unit Treads Light Treads Flight Unit Improved Flight Unit Utility Hacking Suite Device Sensor Array Storage Small Storage Unit Hackware Hacking Suite Protection Medium Armor Plating Weapon Mini Grenade Launcher Ballistic Gun Light Assault Rifle Launcher Mini Grenade Launcher Slashing Weapon Longsword +1 Build | -11 -10 -10 -9 -9 -9 -8 -8 ------- Run | Yrd Mat Min Mat Min Exi Min Mat Slots Evolved 4 | . . . 2 . . . 2 Power . | . . . . . . . . Propulsion 1 | . . . 1 . . . . Utility 3 | . . . 1 . . . 2 Weapon . | . . . . . . . . Parts Attached 33 | 6 11 . 9 1 2 . 4 Power 5 | 1 2 . 2 . . . . Engine 5 | 1 2 . 2 . . . . Core . | . . . . . . . . Reactor . | . . . . . . . . Propulsion 5 | 2 . . 3 . . . . Treads 2 | 2 . . . . . . . Leg . | . . . . . . . . Wheel . | . . . . . . . . Hover . | . . . . . . . . Flight 3 | . . . 3 . . . . Utility 8 | 1 3 . 3 . . . 1 Device 1 | . 1 . . . . . . Storage 4 | 1 2 . . . . . 1 Processor . | . . . . . . . . Hackware 2 | . . . 2 . . . . Protection 1 | . . . 1 . . . . Artifact . | . . . . . . . . Weapon 15 | 2 6 . 1 1 2 . 3 Energy Gun . | . . . . . . . . Energy Cannon . | . . . . . . . . Ballistic Gun 5 | 2 3 . . . . . . Ballistic Cannon . | . . . . . . . . Launcher 8 | . 3 . 1 1 1 . 2 Special Weapon . | . . . . . . . . Impact Weapon . | . . . . . . . . Slashing Weapon 2 | . . . . . 1 . 1 Piercing Weapon . | . . . . . . . . Special Melee Weapon . | . . . . . . . . Unidentified Prototypes 2 | . . . 1 . 1 . . Parts Lost 9 | . 1 1 3 . . . 4 Power 2 | . . . 1 . . . 1 Propulsion 2 | . . 1 . . . . 1 Utility 3 | . . . 1 . . . 2 Weapon 2 | . 1 . 1 . . . . Highest Loss Streak 3 | . 1 1 2 . . . 3 To Critical Strikes 1 | . 1 . . . . . . Average Slot Usage (%) 89 | . 95 85 88 88 87 . 69 Engine 12 | . 14 14 11 11 11 . 8 Treads 14 | . 28 14 1 . . . . Flight 14 | . . . 29 33 33 . 26 Device 5 | . 10 14 1 . . . . Storage 7 | . 14 14 1 . . . 1 Hackware 4 | . . . 11 11 11 . 8 Protection 4 | . . . 10 11 11 . 7 Ballistic Gun 13 | . 25 14 1 . . . . Launcher 10 | . 2 14 20 22 21 . 11 Peak Build Rating 26 | 6 9 9 24 20 26 19 26 Average Rating 13 | 4 7 8 19 20 20 19 23 On Entrance 12 | . 6 9 8 18 20 19 19 Naked Turns . | . . . . . . . . Heaviest Build 25 | 13 18 18 25 16 16 15 18 Greatest Support 40 | 40 40 40 20 15 15 15 15 Greatest Overweight (x) 4 | . . . 4 1 1 . 1 Average Overweight (x) . | . . . . 1 . . . Largest Inventory Capacity 10 | 8 10 10 10 5 5 5 5 Average Capacity 6 | 6 8 10 5 5 5 5 5 Most Carried 10 | 5 10 10 10 2 4 4 5 Average Carried 5 | 1 7 10 4 2 2 4 3 Final Capacity 10 | 8 10 10 5 5 5 5 5 Final Carried 10 | 2 10 10 3 2 4 4 5 Class Distribution -------------------- 97% | Mutant Dominant Class ---------------- Mutant | -10/Materials Mutant | -10/Mines Mutant | -9/Materials Mutant | -9/Mines Mutant | -9/Exiles Mutant | -8/Mines Mutant | -8/Materials Resources | -11 -10 -10 -9 -9 -9 -8 -8 ----------- Run | Yrd Mat Min Mat Min Exi Min Mat Matter Collected 876 | 214 328 44 209 81 . . . Remotely . | . . . . . . . . Salvage Created 832 | . 398 71 363 . . . . Parts 72 | . 38 2 32 . . . . Haulers Intercepted 2 | . 1 . 1 . . . . Recyclers Shooed 2 | . 1 . 1 . . . . Parts Field Recycled . | . . . . . . . . Retrieved Matter . | . . . . . . . . Parts Self-Destructed . | . . . . . . . . Prevented . | . . . . . . . . Kills | -11 -10 -10 -9 -9 -9 -8 -8 ------- Run | Yrd Mat Min Mat Min Exi Min Mat Combat Hostiles Destroyed 27 | . 11 2 14 . . . . Guns 8 | . 8 . . . . . . AOE 19 | . 3 2 14 . . . . Classes Destroyed 12 | . 6 . 6 . . . . Worker 4 | . . . 4 . . . . Builder 1 | . 1 . . . . . . Tunneler 1 | . . . 1 . . . . Hauler 2 | . 1 . 1 . . . . Mechanic 2 | . . . 2 . . . . Operator 2 | . 2 . . . . . . Watcher 6 | . 3 . 3 . . . . Swarmer 10 | . 6 . 4 . . . . Grunt 13 | . 5 2 6 . . . . Duelist 1 | . . . 1 . . . . Sentry 3 | . . . 3 . . . . Zionite 1 | . . . 1 . . . . Best Kill Streak 11 | . 5 2 11 . . . . Combat Bots Only 6 | . 3 2 6 . . . . Max Kills in Single Turn 4 | . 2 1 4 . . . . Gunslinging . | . . . . . . . . Exploded 4 | . 1 1 4 . . . . Melee . | . . . . . . . . Uniques/NPCs Destroyed . | . . . . . . . . Combat | -11 -10 -10 -9 -9 -9 -8 -8 -------- Run | Yrd Mat Min Mat Min Exi Min Mat Hostile Shots Fired 125 | . 44 7 47 1 4 . 22 Missed 44 | . 12 3 22 1 2 . 4 Damage Taken 1107 | . 380 70 328 . 57 . 272 Core 257 | . 39 10 29 . 48 . 131 Absorbed by Shields . | . . . . . . . . Core Remaining (%) 86 | 100 . 80 . . . 80 . Volleys Fired 72 | . 47 2 21 . . . 2 Largest 2 | . 2 2 2 . . . 2 Hottest 60 | . 50 50 60 . . . 60 Shots Fired 140 | . 90 4 42 . . . 4 Gun 87 | . 85 2 . . . . . Cannon . | . . . . . . . . Launcher 53 | . 5 2 42 . . . 4 Special . | . . . . . . . . Kinetic 87 | . 85 2 . . . . . Thermal . | . . . . . . . . Explosive 53 | . 5 2 42 . . . 4 Electromagnetic . | . . . . . . . . Robot Hit Streak 7 | . 6 . 7 . . . 4 Robot Miss Streak 4 | . 4 . 2 . . . . Penetration Max . | . . . . . . . . Secondary Targets 2 | . 2 . . . . . . Max Gunslinging Chain 1 | . 1 . . . . . . Shots Hit Robots 61 | . 49 . 8 . . . 4 Core Hits 77 | . 30 2 43 . . . 2 Critical Kills 1 | . 1 . . . . . . Critical Parts Destroyed . | . . . . . . . . Critical Strikes 1 | . 1 . . . . . . Destroy 1 | . 1 . . . . . . Melee Attacks 14 | . . . . . . . 14 Impact . | . . . . . . . . Slashing 14 | . . . . . . . 14 Piercing . | . . . . . . . . Sneak Attacks . | . . . . . . . . Combat Hostiles . | . . . . . . . . Follow-up Attacks . | . . . . . . . . Damage Inflicted 2847 | . 783 139 1827 . . . 98 Guns 479 | . 479 . . . . . . Cannons . | . . . . . . . . Explosions 2347 | . 298 124 1827 . . . 98 Melee . | . . . . . . . . Ramming 21 | . 6 15 . . . . . Kinetic 479 | . 479 . . . . . . Thermal . | . . . . . . . . Explosive 2347 | . 298 124 1827 . . . 98 Electromagnetic . | . . . . . . . . Impact . | . . . . . . . . Slashing . | . . . . . . . . Piercing . | . . . . . . . . Highest Corruption 2 | . 2 2 . . . . . Average Corruption 1 | . 1 2 . . . . . Corruption Purged . | . . . . . . . . Corruption Blocked . | . . . . . . . . Effects 3 | . 2 1 . . . . . Matter Fused 1 | . 1 . . . . . . Energy Discharges 2 | . 1 1 . . . . . Overload Shots . | . . . . . . . . Overflow Damage 121 | . 12 3 106 . . . . Projectiles . | . . . . . . . . Explosions 121 | . 12 3 106 . . . . Melee . | . . . . . . . . Knockbacks . | . . . . . . . . Impact . | . . . . . . . . Kinetic . | . . . . . . . . Secondary . | . . . . . . . . Self-Inflicted Damage 97 | . 47 23 27 . . . . Shots 4 | . 1 1 2 . . . . Rammed 4 | . 1 3 . . . . . Targets Rammed 4 | . 1 3 . . . . . Kicked . | . . . . . . . . Crushed . | . . . . . . . . Highest Temperature 61 | . 29 16 61 . . . 11 Average Temperature 17 | . 10 9 19 . . . 6 Received Heat Transfer 327 | . 45 30 81 . . . 171 Siege Activations . | . . . . . . . . Robots Corrupted . | . . . . . . . . Combat Hostiles . | . . . . . . . . Parts Fried . | . . . . . . . . Impact Corruptions . | . . . . . . . . Robots Melted . | . . . . . . . . Combat Hostiles . | . . . . . . . . Parts Melted . | . . . . . . . . Heat Transferred . | . . . . . . . . Parts Sabotaged . | . . . . . . . . Parts Stolen . | . . . . . . . . Parts Stripped . | . . . . . . . . Power Chain Reactions . | . . . . . . . . Alert | -11 -10 -10 -9 -9 -9 -8 -8 ------- Run | Yrd Mat Min Mat Min Exi Min Mat Peak Influence 749 | . 290 136 749 279 . . 30 Initial 211 | . . 69 52 211 . . . Average 155 | . 102 131 433 238 . . 8 Maximum Alert Level 3 | . 1 . 3 1 . . . Low Security (%) 73 | 100 91 100 21 . . 100 100 Level 1 15 | . 8 . 19 100 . . . Level 2 8 | . . . 47 . . . . Level 3 2 | . . . 12 . . . . Level 4 . | . . . . . . . . Level 5 . | . . . . . . . . High Security . | . . . . . . . . Max Security . | . . . . . . . . Squads Dispatched 6 | . 2 . 3 1 . . . Investigation 1 | . . . 1 . . . . Extermination . | . . . . . . . . Reinforcement 4 | . 2 . 2 . . . . Assault 1 | . . . . 1 . . . Garrison . | . . . . . . . . Intercept . | . . . . . . . . Searches Triggered . | . . . . . . . . Construction Impeded . | . . . . . . . . Haulers Reinforced . | . . . . . . . . Active Scanning Responses . | . . . . . . . . Cargo Convoy Interrupts . | . . . . . . . . Stealth | -11 -10 -10 -9 -9 -9 -8 -8 --------- Run | Yrd Mat Min Mat Min Exi Min Mat Distress Signals 7 | . 3 . 4 . . . . Communications Jammed . | . . . . . . . . Distress Signals . | . . . . . . . . Times Spotted 56 | . 20 2 25 2 2 . 5 Peak Tracking Total 8 | . 6 2 8 2 3 . 5 Tactical Retreats 4 | . 1 . 1 . 1 . 1 Traps | -11 -10 -10 -9 -9 -9 -8 -8 ------- Run | Yrd Mat Min Mat Min Exi Min Mat Traps Triggered 3 | . 2 . 1 . . . . Indirectly . | . . . . . . . . Trap Hack Attempts . | . . . . . . . . Triggered . | . . . . . . . . Disarmed . | . . . . . . . . Reprogrammed . | . . . . . . . . Reused . | . . . . . . . . Traps Extracted . | . . . . . . . . Installed . | . . . . . . . . Triggered . | . . . . . . . . Machines | -11 -10 -10 -9 -9 -9 -8 -8 ---------- Run | Yrd Mat Min Mat Min Exi Min Mat Machines Disabled 6 | . . . 5 1 . . . Max in Single Turn 2 | . . . 2 . . . . Machines Repaired . | . . . . . . . . Machines Dismantled . | . . . . . . . . Machines Sabotaged . | . . . . . . . . Overloaded Fab Kills . | . . . . . . . . Hacking | -11 -10 -10 -9 -9 -9 -8 -8 --------- Run | Yrd Mat Min Mat Min Exi Min Mat Machines Accessed 12 | . 7 . 4 . . . 1 Terminals 12 | . 7 . 4 . . . 1 Fabricators . | . . . . . . . . Repair Stations . | . . . . . . . . Recycling Units . | . . . . . . . . Scanalyzers . | . . . . . . . . Garrison Access . | . . . . . . . . Total Hacks 31 | . 15 . 14 . . . 2 Successful 12 | . 7 . 4 . . . 1 Failed 19 | . 8 . 10 . . . 1 Catastrophic 2 | . . . 2 . . . . Database Lockouts . | . . . . . . . . Manual 18 | . 7 . 10 . 1 . . Terminals 31 | . 15 . 14 . . . 2 Fabricators . | . . . . . . . . Repair Stations . | . . . . . . . . Recycling Units . | . . . . . . . . Scanalyzers . | . . . . . . . . Garrison Access . | . . . . . . . . Terminal Hacks 12 | . 7 . 4 . . . 1 Record 1 | . 1 . . . . . . Prototype ID Bank 1 | . . . . . . . 1 Branch Access Points 1 | . . . 1 . . . . Locate Traps 1 | . 1 . . . . . . Maintenance Status 1 | . . . 1 . . . . Transport Status 1 | . 1 . . . . . . Investigation Status 1 | . 1 . . . . . . Reinforcement Status 1 | . . . 1 . . . . Recall Investigation 1 | . 1 . . . . . . Recall Reinforcements 1 | . . . 1 . . . . Hauler Manifests 1 | . 1 . . . . . . Registered Components 1 | . 1 . . . . . . Fabricator Hacks . | . . . . . . . . Repair Station Hacks . | . . . . . . . . Recycling Unit Hacks . | . . . . . . . . Scanalyzer . | . . . . . . . . Garrison Access Hacks . | . . . . . . . . Unauthorized Hacks . | . . . . . . . . Terminals . | . . . . . . . . Fabricators . | . . . . . . . . Repair Stations . | . . . . . . . . Recycling Units . | . . . . . . . . Scanalyzers . | . . . . . . . . Garrison Access . | . . . . . . . . Data Cores Recovered 1 | . 1 . . . . . . Used . | . . . . . . . . Hacking Detections 10 | . 6 . 3 . . . 1 Full Trace Events 2 | . . . 2 . . . . Feedback Events . | . . . . . . . . Feedback Blocked . | . . . . . . . . Robot Schematics Acquired . | . . . . . . . . Robots Built . | . . . . . . . . Authchips . | . . . . . . . . Time . | . . . . . . . . Total Robot Build Rating . | . . . . . . . . Part Schematics Acquired . | . . . . . . . . Parts Built . | . . . . . . . . Authchips . | . . . . . . . . Time . | . . . . . . . . Total Part Build Rating . | . . . . . . . . Parts Repaired . | . . . . . . . . Time . | . . . . . . . . Parts Recycled . | . . . . . . . . Recycled Matter . | . . . . . . . . Retrieved Matter . | . . . . . . . . Retrieved Components . | . . . . . . . . Parts Scanalyzed . | . . . . . . . . Part Schematics Acquired . | . . . . . . . . Parts Damaged . | . . . . . . . . Bothacking | -11 -10 -10 -9 -9 -9 -8 -8 ------------ Run | Yrd Mat Min Mat Min Exi Min Mat Used RIF Installer . | . . . . . . . . Robots Hacked . | . . . . . . . . Non-combat . | . . . . . . . . Combat . | . . . . . . . . Robot Hacks Applied . | . . . . . . . . Relay Couplers Released . | . . . . . . . . Fabnet Peak Effective % . | . . . . . . . . Robots Rewired . | . . . . . . . . Allies Hacked . | . . . . . . . . Hacks Repelled . | . . . . . . . . Allies | -11 -10 -10 -9 -9 -9 -8 -8 -------- Run | Yrd Mat Min Mat Min Exi Min Mat Total Allies 3 | . . 2 . 1 . . . Largest Group 2 | . . 2 2 1 1 . . Highest-Rated Group 49 | . . 49 49 31 31 . . Highest-Rated Ally 31 | . . 31 31 31 31 . . Total Orders . | . . . . . . . . Ally Attacks 18 | . . . 10 6 2 . . Total Damage 234 | . . . 87 106 41 . . Kills 3 | . . . 1 2 . . . Allies Corrupted . | . . . . . . . . Allies Melted . | . . . . . . . . Intel | -11 -10 -10 -9 -9 -9 -8 -8 ------- Run | Yrd Mat Min Mat Min Exi Min Mat Robot Analysis Total . | . . . . . . . . Derelict Logs Recovered 1 | . . . . 1 . . . Drone Launches . | . . . . . . . . Drone Recoveries . | . . . . . . . . Exploration | -11 -10 -10 -9 -9 -9 -8 -8 ------------- Run | Yrd Mat Min Mat Min Exi Min Mat Turns Passed 2609 | 63 1258 73 407 190 273 4 341 Spaces Moved 1967 | 36 687 40 366 182 304 11 341 Core 7 | 7 . . . . . . . Treads 775 | 29 687 40 19 . . . . Legs . | . . . . . . . . Wheels . | . . . . . . . . Hover . | . . . . . . . . Flight 1185 | . . . 347 182 304 11 341 Fastest Speed 34 | 50 160 160 34 104 34 34 34 Average Speed 116 | 138 160 160 87 104 88 34 87 Slowest Speed 340 | 160 160 160 340 104 104 34 104 Overloaded Moves . | . . . . . . . . Propulsion Burnouts . | . . . . . . . . Robots Hopped . | . . . . . . . . Cave-ins Triggered . | . . . . . . . . Exploration Rate (%) 31 | 4 84 7 44 34 61 3 15 Regions Visited 7 Branch Regions 4 Pre-discovered Areas . | . . . . . . . . Known Exits Taken 1 | . . . 1 . . . . Unknown Exits Taken 6 | 1 1 1 . 1 1 1 . Scrap Searched . | . . . . . . . . Spaces Dug 29 | . 3 12 . . . . 14 Terrain Destroyed 261 | . 39 24 168 . . . 30 Melee 14 | . . . . . . . 14 Projectile . | . . . . . . . . AOE 247 | . 39 24 168 . . . 16 Terrain Rammed . | . . . . . . . . Walls Destroyed . | . . . . . . . . Machines Disabled . | . . . . . . . . Actions | -11 -10 -10 -9 -9 -9 -8 -8 --------- Run | Yrd Mat Min Mat Min Exi Min Mat Total 2141 | 49 769 44 415 182 307 10 365 Wait 1 | . 1 . . . . . . Move 1960 | 35 686 39 365 181 303 10 341 Hop . | . . . . . . . . Pick Up 30 | 8 14 . 5 . 1 . 2 Fast Attach 5 | . 1 . 4 . . . . Attach 14 | 6 1 . 4 1 . . 2 Detach 5 | . . . 3 . 1 . 1 Swap 14 | . 9 . 1 . 2 . 2 Drop 22 | . 9 . 12 . . . 1 Fire 72 | . 47 2 21 . . . 2 Melee 14 | . . . . . . . 14 Ram . | . . . . . . . . Kick . | . . . . . . . . Crush 4 | . 1 3 . . . . . Escape Stasis . | . . . . . . . . Rewire . | . . . . . . . . Trap . | . . . . . . . . Miscellaneous . | . . . . . . . . Route ------- -11/Scrapyard -10/Materials (discovered 3 exits: *Mat x2 / [*Min]) -10/Mines -9/Materials (discovered 2 exits: *Min x2) -9/Mines -9/Exiles (discovered 2 exits: [*Min x2]) -8/Mines -8/Materials (discovered 1 exit: [*Sto]) History --------- Turn | Location | Event 25 | -11/Scrapyard | Discovered new exit (range 15) 64 | -11/Scrapyard | Entered Materials 312 | -10/Materials | Build established: Mutant 365 | -10/Materials | Discovered new exit (range 15) 843 | -10/Materials | Discovered new exit (range 6) 1075 | -10/Materials | Discovered new exit (range 3) 1322 | -10/Materials | Entered Mines 1387 | -10/Mines | Discovered new exit (range 5) 1395 | -10/Mines | Entered Materials 1395 | -9/Materials | Accompanied by 2 allies 1395 | -9/Materials | Evolved 2 slots: Propulsion x1, Utility x1 1400 | -9/Materials | Led the pair of lost Derelicts to an unsafe place 1605 | -9/Materials | Discovered new exit (range 14) 1752 | -9/Materials | Identified exit to Mines 1802 | -9/Materials | Entered Mines 1836 | -9/Mines | Met a Derelict testing a Signal Generator 1887 | -9/Mines | Learned Materials security intel 1985 | -9/Mines | Deemed a non-threat by the Exiles lab entrance 1987 | -9/Mines | Discovered new exit (range 5) 1992 | -9/Mines | Entered Exiles 1992 | -9/Exiles | Accompanied by 1 ally 2010 | -9/Exiles | Discovered new exit (range 14) 2032 | -9/Exiles | Met 8R-AWN 2047 | -9/Exiles | Met EX-HEX 2077 | -9/Exiles | Met EX-BIN 2091 | -9/Exiles | Aligned with FarCom system 2092 | -9/Exiles | Given EX-Vault access code 2119 | -9/Exiles | Opened EX-Vault 2124 | -9/Exiles | Found Prototype Slashing Weapon 2125 | -9/Exiles | Identified Longsword +1 2149 | -9/Exiles | Warned to stay clear of 0b10 Research branches 2166 | -9/Exiles | Exiles lab attacked by MAIN.C 2261 | -9/Exiles | Discovered new exit (range 12) 2265 | -9/Exiles | Left Exiles lab with Longsword +1 2265 | -9/Exiles | Entered Mines 2267 | -8/Mines | Lost 8 allies 2267 | -8/Mines | Discovered new exit (range 6) 2269 | -8/Mines | Entered Materials 2269 | -8/Materials | Evolved 2 slots: Utility x2 2270 | -8/Materials | Discovered new exit (range 11) 2610 | -8/Materials | Self-destructed Last Messages --------------- 02269_ Receiving FarCom transmissions... Loading Materials security intel (x10)... 02270_ EXIT=FOUND 02282_ Connecting with Terminal... 02282_ Current location identified: Materials >>Prototypes Downloading prototype IDs... Aerolev Unit Hvy. Particle Gun 02298_ Acquired Hcp. Matter Pod. 02559_ Med. Armor Plating destroyed. 02582_ Critical hit (Burn: +37). 02595_ Acquired Hrd. Medium Armor Plating. 02597_ Critical hit (Burn: +37). 02597_ Imp. Ion Engine destroyed. 02600_ Hacking Suite destroyed. 02606_ The unstable cave ceiling collapses. 02606_ Dropped Mni. Grenade Launcher. 02607_ The unstable cave ceiling collapses. 02607_ Imp. Flight Unit destroyed. Map ----- +----------------------------------------------------+ | ????????????? #???????????????????????????????? | | ????????????? #???????????????????????????????? | | ?????????????# #???????????????????????????????? | | ?????????????# #???????????????????????????????? | | ?????????????# #???????????????????????????????? | | ?????????????/ #?????#?????????????????????????? | | ?????????????# #????? ?????????????????????????? | | ?????????????# #????? ?????????????????????????? | | ?????????????# #????? ?????????????????????????? | | ?????????????# ###### #????????????????????????? | | ?????????????# # # #????????????????????????? | | ?????????????# # #g ????Y???????????????????? | | ?????????????# # = # #????????????????????????? | | ?????????????# ; # #????????????????????????? | | ????????????## # # #????????????????????????? | | ?????########" # # #????????????????????????? | | ?????# [ # # b # ##########???????????????? | | ?????# # # ]#???????????????? | | ?????# """ |# # g #???????????????? | | ?????# """ # g## # ! #???????????????? | | ????## """ # g #???????????????? | | ????#" + Y #???????????????? | | ????## """ # #???????????????? | | ?????# """ ##+### # #???????????????? | | ?????# """ ## #???????????????? | | ?????# ## ! T @ #???????????????? | | ?????# [ ## ##########???????????????? | | ?????########## ==! #????????????????????????? | | ??????????????# ==! #????????????????????????? | | ??????????????# ==! #????????????????????????? | | ?????????????## ##???????????????????????? | | ?????????????#" ! #???????????????????????? | | ?????????????#####"#/#####???????????????????????? | | ?????????????????##" #?#########?????????????????? | | ????????????????#### #?# ##????????????????? | | ????????????????#"## ### "#????????????????? | | ?????????????????# # #?????????????????? | | ?????????????????# # """ ##????????????????? | | ?????????????????# < # """ "#????????????????? | | ?????????????????# # """ ####??????????????? | | ?????????????????# " ##"###????????????? | | ?????????????????## ## """ "## !!#????????????? | | ??????????###?????# ## """ T## !!#????????????? | | ????????###"####### ## """ "## !!#????????????? | | ????????#" # ## ## !!#????????????? | | ????????## # ##/######## //#????????????? | | ?????????# # //#????????????? | | ?????????# # #####????????????? | | ?????????# + "#???????????????? | | ?????????# # ##+#########???????????????? | +----------------------------------------------------+ Best States ------------- Heat Dissipation 31 Energy Generation 12 Energy Capacity 265 Matter Stores 300 Matter Capacity 500 Sight Range 16 Robot Scan Range 14 Terrain Scan Density 10 Armor Coverage 225 Evasion (%) 63 Recoil Reduction 2 Offensive Hacking 10 Defensive Hacking 11 Item Schematics ----------------- None Robot Schematics ------------------ None Fabricated ------------ Nothing Alien Tech Used ----------------- None Achievements -------------- Novice Programmer Challenges ------------ None Game ------ Seed FocalArmageddonAutogun Manual? 0 Play Time 00:30:40 Cumulative 21.4 hours Start 2024.10.20 @ 11:03:49 End 2024.10.20 @ 11:32:53 Sessions 1 Manual Loads 0 Difficulty Rogue Special Mode None Game No. 18 Rogue 11 Adventurer 0 Explorer 7 Win Type - Total 1 Types 1/0/0/0/0/0/0/0/0 Lore% 11 Gallery% 18 Achievement% 23 Wizard Run 0 Options --------- Layout 0 ASCII 0 Keyboard 0 Movement Mouse Keybinds 0 Fullscreen 1 Font 24/Terminus Map View 76x50 Zoom Use 0% Tactical HUD 1 Map Filters NONE Filters NONE Steam 1 RUN: 4fca0654-df21-47e6-8798-6d76315f368b